bitfinex/quotes_SOLUSD_20230402
["timestamp","ask_amount","ask_price","bid_price","bid_amount"]
[1680465732728,17.0,20.32,20.307,10.0]
[1680465732937,10.0,20.321,20.307,10.0]
[1680465733239,17.0,20.32,20.307,10.0]
[1680465733644,17.0,20.322,20.307,10.0]
[1680465733829,10.0,20.323,20.307,10.0]
[1680465734143,48.72,20.347,20.307,10.0]
[1680465734444,10.0,20.323,20.307,10.0]
[1680465734827,0.35879707,20.322,20.307,10.0]
[1680465735825,17.35879707,20.322,20.302,17.37705917]
[1680465736032,17.35879707,20.322,20.301,112.5574]
[1680465736331,10.0,20.321,20.301,112.5574]
[1680465736635,10.0,20.319,20.301,112.5574]
[1680465736831,17.0,20.318,20.301,112.5574]
[1680465737036,10.0,20.317,20.301,112.5574]
[1680465737233,10.0,20.315,20.301,112.5574]
[1680465737648,17.0,20.314,20.301,112.5574]
[1680465738250,17.0,20.316,20.301,112.5574]
[1680465739736,0.35650291,20.315,20.301,112.5574]
[1680465741351,0.35650291,20.315,20.302,19.680684]
[1680465741738,17.0,20.316,20.302,19.680684]
[1680465742737,0.35650291,20.315,20.302,19.680684]
[1680465742941,10.35650291,20.315,20.302,19.680684]
[1680465743141,17.0,20.314,20.302,19.680684]
[1680465743745,17.35617505,20.314,20.302,19.680684]
[1680465743947,17.0,20.314,20.304,10.0]
[1680465744842,17.0,20.316,20.303,20.0]
[1680465745038,17.0,20.316,20.304,10.0]
[1680465746149,10.0,20.317,20.304,10.0]
[1680465746341,17.0,20.316,20.304,10.0]
[1680465746753,10.0,20.317,20.304,10.0]
[1680465746955,17.0,20.316,20.304,10.0]
[1680465747543,10.0,20.315,20.303,20.0]
[1680465747859,17.0,20.314,20.303,20.0]
[1680465748358,10.0,20.313,20.303,20.0]
[1680465748659,17.0,20.312,20.303,20.0]
[1680465751864,10.35519126,20.311,20.303,20.0]
[1680465752046,17.0,20.31,20.303,20.0]
[1680465752751,0.35486326,20.31,20.303,20.0]
[1680465753064,17.0,20.312,20.303,20.0]
[1680465753759,10.0,20.313,20.303,20.0]
[1680465754161,10.0,20.311,20.303,20.0]
[1680465754454,17.0,20.31,20.303,20.0]
[1680465755158,17.0,20.312,20.303,20.0]
[1680465755541,10.0,20.313,20.303,20.0]
[1680465755744,0.35453523,20.309,20.303,20.0]
[1680465756859,114.2465,20.322,20.303,20.0]
[1680465757063,28.86,20.32,20.303,20.0]
[1680465757743,0.35650291,20.315,20.303,20.0]
[1680465758439,0.35650291,20.315,20.304,10.0]
[1680465759744,0.35650291,20.315,20.304,17.37705917]
[1680465759946,10.0,20.326,20.304,17.37705917]
[1680465760449,7.37705917,20.325,20.304,17.37705917]
[1680465760650,17.0,20.322,20.304,17.37705917]
[1680465760966,0.35617505,20.314,20.304,17.37705917]
[1680465761868,17.0,20.322,20.304,17.37705917]
[1680465762964,10.35846943,20.321,20.304,17.37705917]
[1680465763145,17.0,20.32,20.304,17.37705917]
[1680465763348,0.35846943,20.321,20.304,17.37705917]
[1680465763766,0.35846943,20.321,20.304,10.0]
[1680465764068,17.35846943,20.321,20.304,10.0]
[1680465764257,0.35846943,20.321,20.304,10.0]
[1680465764573,17.0,20.32,20.304,10.0]
[1680465764871,10.35814176,20.32,20.304,10.0]
[1680465765072,17.0,20.319,20.304,10.0]
[1680465765269,17.0,20.321,20.304,10.0]
[1680465765458,10.0,20.322,20.304,10.0]
[1680465765658,17.0,20.321,20.304,10.0]
[1680465768150,17.0,20.322,20.304,10.0]
[1680465768860,0.35814176,20.32,20.304,10.0]
[1680465769674,0.35814176,20.32,20.305,7.37705917]
[1680465769851,10.0,20.323,20.306,10.0]
[1680465770169,10.0,20.323,20.306,127.1929]
[1680465770346,10.0,20.321,20.306,127.1929]
[1680465770550,10.0,20.319,20.306,127.1929]
[1680465770947,17.0,20.318,20.306,127.1929]
[1680465772769,0.35715855,20.317,20.306,127.1929]
[1680465773773,10.0,20.323,20.306,134.56995917]
[1680465774168,20.0,20.324,20.306,134.56995917]
[1680465774871,10.35879707,20.322,20.306,134.56995917]
[1680465775170,17.0,20.321,20.306,127.1929]
[1680465776770,10.0,20.322,20.306,127.1929]
[1680465776973,0.35814176,20.32,20.306,127.1929]
[1680465777472,0.35814176,20.32,20.306,134.56995917]
[1680465777967,17.0,20.321,20.306,134.56995917]
[1680465778172,27.0,20.323,20.306,134.56995917]
[1680465779168,17.0,20.323,20.306,134.56995917]
[1680465781572,10.0,20.336,20.311,10.0]
[1680465781758,20.0,20.335,20.312,20.0]
[1680465781958,10.0,20.334,20.313,10.0]
[1680465782168,10.0,20.334,20.313,17.37705917]
[1680465782373,10.0,20.334,20.315,10.0]
[1680465782678,10.0,20.334,20.315,17.37705917]
[1680465782857,10.0,20.332,20.315,17.37705917]
[1680465783059,17.0,20.331,20.315,17.37705917]
[1680465783253,10.0,20.332,20.315,17.37705917]
[1680465783567,10.0,20.334,20.315,17.37705917]
[1680465783956,10.0,20.334,20.317,10.0]
[1680465784153,10.0,20.334,20.317,121.803]
[1680465784673,10.0,20.336,20.317,121.803]
[1680465784870,10.0,20.334,20.317,121.803]
[1680465785860,17.0,20.333,20.317,121.803]
[1680465786563,17.0,20.333,20.317,111.803]
[1680465786868,10.3620717,20.332,20.317,111.803]
[1680465787071,17.0,20.331,20.317,111.803]
[1680465787267,10.0,20.33,20.317,111.803]
[1680465787464,17.0,20.329,20.318,10.0]
[1680465787976,17.0,20.331,20.318,10.0]
[1680465788975,10.0,20.332,20.318,10.0]
[1680465789168,10.0,20.33,20.318,10.0]
[1680465789369,17.0,20.329,20.318,10.0]
[1680465789569,17.0,20.329,20.317,111.803]
[1680465790579,17.0,20.329,20.318,10.0]
[1680465790765,17.0,20.331,20.318,10.0]
[1680465790962,0.36076224,20.328,20.318,10.0]
[1680465791875,0.36141703,20.33,20.318,10.0]
[1680465792178,17.0,20.331,20.318,10.0]
[1680465792560,17.0,20.333,20.318,10.0]
[1680465794354,10.0,20.332,20.318,10.0]
[1680465794671,10.0,20.33,20.318,10.0]
[1680465794977,17.0,20.329,20.318,10.0]
[1680465795577,10.0,20.33,20.318,10.0]
[1680465795776,17.0,20.329,20.318,10.0]
[1680465796580,17.0,20.331,20.318,10.0]
[1680465797273,17.0,20.331,20.317,111.803]
[1680465797576,17.0,20.331,20.318,10.0]
[1680465798982,10.0,20.332,20.318,10.0]
[1680465799171,17.0,20.331,20.318,10.0]
[1680465801160,10.0,20.332,20.318,10.0]
[1680465801364,17.0,20.331,20.318,10.0]
[1680465801662,10.0,20.334,20.318,10.0]
[1680465801663,10.0,20.334,20.32,10.0]
[1680465802276,120.9616,20.339,20.32,10.0]
[1680465802474,10.0,20.335,20.32,10.0]
[1680465802680,20.0,20.334,20.32,10.0]
[1680465802878,17.0,20.333,20.32,10.0]
[1680465803370,120.9616,20.339,20.32,10.0]
[1680465803579,17.0,20.336,20.322,10.0]
[1680465803877,17.0,20.336,20.324,10.0]
[1680465804176,0.3620717,20.332,20.324,10.0]
[1680465804891,10.0,20.342,20.324,10.0]
[1680465805069,10.0,20.34,20.324,17.37705917]
[1680465805384,10.0,20.338,20.324,17.37705917]
[1680465806662,10.0,20.34,20.324,17.37705917]
[1680465806982,10.0,20.338,20.324,17.37705917]
[1680465807186,10.0,20.342,20.324,17.37705917]
[1680465809276,17.0,20.341,20.324,17.37705917]
[1680465810783,0.36468909,20.34,20.324,17.37705917]
[1680465812076,10.0,20.345,20.324,17.37705917]
[1680465812388,10.0,20.347,20.33,28.57]
[1680465812582,28.81,20.36,20.33,28.57]
[1680465812583,28.81,20.36,20.331,159.8657]
[1680465812792,0.36436202,20.339,20.332,10.0]
[1680465812976,0.36436202,20.339,20.333,37.0]
[1680465813284,0.36436202,20.339,20.334,10.0]
[1680465813477,0.36436202,20.339,20.335,20.0]
[1680465813683,10.0,20.359,20.336,10.0]
[1680465813875,10.0,20.359,20.34,28.65]
[1680465814183,10.0,20.359,20.342,10.0]
[1680465814484,10.0,20.359,20.343,20.0]
[1680465814665,10.0,20.359,20.344,10.0]
[1680465814860,0.33413448,20.358,20.344,10.0]
[1680465815182,0.33413448,20.358,20.342,10.0]
[1680465815485,10.0,20.357,20.343,20.0]
[1680465815681,17.0,20.356,20.343,20.0]
[1680465815879,10.0,20.355,20.343,20.0]
[1680465816079,10.0,20.353,20.343,20.0]
[1680465816270,17.0,20.352,20.343,20.0]
[1680465816476,10.0,20.351,20.343,10.0]
[1680465816679,17.0,20.35,20.344,20.0]
[1680465816877,17.0,20.352,20.342,20.0]
[1680465817885,17.0,20.352,20.338,10.0]
[1680465818088,19.670603,20.343,20.34,10.0]
[1680465818282,19.670603,20.343,20.341,20.0]
[1680465819491,19.670603,20.343,20.34,10.0]
[1680465819692,19.670603,20.343,20.341,20.0]
[1680465819902,19.670603,20.343,20.342,10.0]
[1680465820189,19.670603,20.343,20.341,20.0]
[1680465822993,0.32890691,20.342,20.341,20.0]
[1680465828783,0.00950991,20.343,20.341,20.0]
[1680465828988,0.00950991,20.343,20.342,10.0]
[1680465829194,0.00950991,20.343,20.342,30.0]
[1680465830194,10.0,20.367,20.343,10.0]
[1680465830385,10.0,20.357,20.345,10.0]
[1680465830581,17.0,20.356,20.345,10.0]
[1680465830982,10.0,20.357,20.345,10.0]
[1680465831197,17.0,20.356,20.345,10.0]
[1680465831786,10.0,20.359,20.345,10.0]
[1680465832081,10.0,20.367,20.345,10.0]
[1680465832399,10.0,20.365,20.345,10.0]
[1680465832581,10.0,20.363,20.345,10.0]
[1680465833099,0.30124379,20.358,20.345,10.0]
[1680465833999,10.0,20.363,20.345,10.0]
[1680465834296,10.0,20.363,20.344,20.0]
[1680465834497,10.0,20.361,20.344,10.0]
[1680465834703,10.0,20.359,20.344,10.0]
[1680465834901,0.3009173,20.357,20.344,10.0]
[1680465835092,10.3009173,20.357,20.344,10.0]
[1680465835290,10.0,20.355,20.344,10.0]
[1680465835599,17.0,20.354,20.344,10.0]
[1680465835995,17.0,20.356,20.344,10.0]
[1680465836299,10.0,20.357,20.344,10.0]
[1680465836684,10.0,20.359,20.344,10.0]
[1680465836885,0.29961105,20.353,20.344,10.0]
[1680465838405,0.29961105,20.353,20.344,17.37705917]
[1680465838887,10.0,20.36,20.344,17.37705917]
[1680465839198,17.0,20.359,20.344,17.37705917]
[1680465839405,10.0,20.365,20.346,10.0]
[1680465839587,10.0,20.365,20.348,10.0]
[1680465839902,0.30157024,20.359,20.348,10.0]
[1680465840084,0.30157024,20.359,20.35,10.0]
[1680465840279,0.30157024,20.359,20.352,10.0]
[1680465840488,0.30157024,20.359,20.354,10.0]
[1680465840801,10.0,20.365,20.354,10.0]
[1680465840986,17.0,20.364,20.354,10.0]
[1680465842000,17.30320201,20.364,20.354,10.0]
[1680465842184,0.30320201,20.364,20.354,10.0]
[1680465845089,9.30320201,20.369,20.354,10.0]
[1680465845893,0.30287572,20.363,20.354,10.0]
[1680465846902,9.30320201,20.369,20.354,10.0]
[1680465847100,10.0,20.367,20.354,10.0]
[1680465847300,17.0,20.366,20.354,10.0]
[1680465848105,9.5,20.367,20.354,10.0]
[1680465848296,17.0,20.366,20.354,10.0]
[1680465848601,9.30320201,20.369,20.354,10.0]
[1680465848803,17.0,20.368,20.354,10.0]
[1680465849006,9.30320201,20.369,20.354,10.0]
[1680465849802,9.30320201,20.369,20.355,17.0]
[1680465849986,9.30320201,20.369,20.356,10.0]
[1680465850805,19.646068,20.37,20.356,10.0]
[1680465855004,7.37705917,20.378,20.356,10.0]
[1680465855305,10.0,20.37,20.356,10.0]
[1680465855608,17.0,20.369,20.356,10.0]
[1680465856190,17.0,20.369,20.35,109.8333]
[1680465856191,10.0,20.368,20.35,109.8333]
[1680465856395,10.0,20.366,20.351,20.0]
[1680465856597,17.0,20.365,20.351,20.0]
[1680465856803,10.0,20.364,20.351,20.0]
[1680465857006,10.0,20.362,20.351,20.0]
[1680465857312,17.0,20.361,20.352,10.0]
[1680465857504,17.0,20.365,20.353,20.0]
[1680465857691,17.0,20.365,20.354,10.0]
[1680465857989,10.0,20.366,20.354,10.0]
[1680465858186,10.0,20.364,20.353,20.0]
[1680465858392,17.0,20.363,20.353,20.0]
[1680465859009,17.0,20.363,20.353,10.0]
[1680465859202,17.0,20.363,20.354,20.0]
[1680465860194,17.0,20.363,20.355,10.0]
[1680465860903,10.0,20.369,20.355,10.0]
[1680465861106,10.0,20.373,20.355,10.0]
[1680465862307,10.0,20.378,20.355,10.0]
[1680465862506,10.0,20.376,20.357,10.0]
[1680465862809,10.0,20.374,20.357,10.0]
[1680465863008,0.68954243,20.373,20.357,10.0]
[1680465864510,10.0,20.372,20.357,10.0]
[1680465864816,17.0,20.371,20.357,10.0]
[1680465865408,10.0,20.372,20.357,10.0]
[1680465867417,10.0,20.374,20.357,10.0]
[1680465867799,10.0,20.372,20.359,10.0]
[1680465869120,17.0,20.373,20.359,10.0]
[1680465870920,17.68954243,20.373,20.359,10.0]
[1680465874823,17.0,20.369,20.357,10.0]
[1680465876019,17.0,20.371,20.357,10.0]
[1680465876413,110.7006,20.372,20.357,10.0]
[1680465876728,10.0,20.379,20.358,37.0]
[1680465876908,10.0,20.379,20.359,10.0]
[1680465877106,10.0,20.379,20.361,10.0]
[1680465877328,10.0,20.379,20.362,37.0]
[1680465877510,10.0,20.379,20.363,10.0]
[1680465877710,10.0,20.379,20.365,10.0]
[1680465878026,0.69361625,20.378,20.365,10.0]
[1680465879122,0.69361625,20.378,20.367,10.0]
[1680465881025,10.0,20.382,20.367,10.0]
[1680465881613,10.0,20.38,20.367,10.0]
[1680465883126,10.0,20.38,20.366,111.9988]
[1680465883426,10.0,20.378,20.366,111.9988]
[1680465883623,17.0,20.377,20.366,111.9988]
[1680465884611,10.0,20.378,20.366,111.9988]
[1680465884834,17.0,20.377,20.366,111.9988]
[1680465885215,17.0,20.377,20.362,20.0]
[1680465885417,10.0,20.376,20.362,20.0]
[1680465885727,10.0,20.374,20.362,20.0]
[1680465886118,17.0,20.373,20.362,20.0]
[1680465886418,17.0,20.373,20.363,10.0]
[1680465886621,17.0,20.375,20.364,20.0]
[1680465886943,0.45969496,20.373,20.365,10.0]
[1680465887228,17.0,20.375,20.365,10.0]
[1680465887428,10.0,20.378,20.365,10.0]
[1680465887836,17.0,20.377,20.365,10.0]
[1680465890737,17.0,20.377,20.364,20.0]
[1680465891622,10.0,20.376,20.364,20.0]
[1680465891937,10.0,20.374,20.362,20.0]
[1680465892237,10.0,20.372,20.362,20.0]
[1680465892734,10.0,20.37,20.362,20.0]
[1680465892938,17.0,20.369,20.362,20.0]
[1680465893123,17.0,20.371,20.362,10.0]
[1680465893324,17.0,20.371,20.363,20.0]
[1680465894037,17.0,20.371,20.362,10.0]
[1680465894231,17.0,20.371,20.363,20.0]
[1680465895139,17.0,20.371,20.362,10.0]
[1680465895325,17.0,20.371,20.363,20.0]
[1680465895646,10.0,20.372,20.363,20.0]
[1680465895829,10.0,20.37,20.363,20.0]
[1680465896023,10.0,20.37,20.362,10.0]
[1680465896222,10.0,20.37,20.363,20.0]
[1680465896441,10.0,20.37,20.361,20.0]
[1680465896946,17.0,20.371,20.361,20.0]
[1680465897321,10.0,20.372,20.361,20.0]
[1680465897522,17.0,20.371,20.361,20.0]
[1680465899031,10.0,20.372,20.361,20.0]
[1680465899232,17.0,20.371,20.361,20.0]
[1680465900041,10.0,20.372,20.361,20.0]
[1680465900335,17.0,20.371,20.36,19.627429]
[1680465900642,10.0,20.37,20.36,19.627429]
[1680465900842,10.0,20.368,20.355,109.4876]
[1680465901342,10.0,20.366,20.355,109.4876]
[1680465901540,17.0,20.365,20.355,109.4876]
[1680465902025,17.0,20.367,20.355,109.4876]
[1680465902234,14.65351124,20.377,20.356,10.0]
[1680465902428,17.0,20.371,20.356,10.0]
[1680465902820,14.65351124,20.377,20.356,10.0]
[1680465904029,28.68,20.38,20.357,7.37705917]
[1680465904232,10.0,20.387,20.361,10.0]
[1680465904443,10.0,20.387,20.363,10.0]
[1680465904624,10.0,20.387,20.364,20.0]
[1680465904825,10.0,20.387,20.365,10.0]
[1680465905038,10.0,20.387,20.365,126.4338]
[1680465905842,10.0,20.385,20.365,126.4338]
[1680465906043,17.0,20.384,20.365,126.4338]
[1680465906246,10.0,20.383,20.365,126.4338]
[1680465906545,10.0,20.381,20.365,126.4338]
[1680465906931,10.0,20.379,20.365,126.4338]
[1680465907336,17.0,20.378,20.365,126.4338]
[1680465909848,17.0,20.378,20.365,116.4338]
[1680465910142,10.0,20.377,20.365,116.4338]
[1680465910447,17.0,20.376,20.364,20.0]
[1680465910630,10.0,20.375,20.362,20.0]
[1680465910830,10.0,20.373,20.362,20.0]
[1680465911052,17.0,20.372,20.362,20.0]
[1680465916542,10.0,20.373,20.362,20.0]
[1680465916736,17.0,20.372,20.362,20.0]
[1680465923549,17.0,20.374,20.362,20.0]
[1680465924940,10.68954243,20.373,20.362,20.0]
[1680465925232,17.0,20.372,20.362,20.0]
[1680465926449,10.0,20.373,20.362,20.0]
[1680465926651,17.0,20.372,20.362,20.0]
[1680465928341,10.0,20.373,20.362,20.0]
[1680465928541,17.0,20.372,20.362,20.0]
[1680465929359,10.0,20.373,20.362,20.0]
[1680465929558,17.0,20.374,20.363,10.0]
[1680465929757,17.0,20.374,20.364,20.0]
[1680465929946,17.0,20.376,20.365,10.0]
[1680465930148,17.0,20.378,20.365,10.0]
[1680465930859,0.6911722,20.375,20.365,10.0]
[1680465931861,17.0,20.376,20.365,10.0]
[1680465932160,10.0,20.377,20.365,10.0]
[1680465932363,17.0,20.376,20.365,10.0]
[1680465933062,0.6911722,20.375,20.364,27.37705917]
[1680465933564,10.6911722,20.375,20.364,20.0]
[1680465933763,17.0,20.374,20.364,20.0]
[1680465933961,17.0,20.374,20.364,10.0]
[1680465934167,0.6911722,20.375,20.364,10.0]
[1680465934862,10.0,20.38,20.364,10.0]
[1680465935467,10.0,20.377,20.364,10.0]
[1680465935767,17.0,20.378,20.364,10.0]
[1680465935972,17.69361625,20.378,20.364,10.0]
[1680465936359,0.69361625,20.378,20.364,10.0]
[1680465938868,0.69361625,20.378,20.363,20.0]
[1680465949077,0.69361625,20.378,20.364,10.0]
[1680465951585,0.69361625,20.378,20.363,30.0]
[1680465952786,0.69361625,20.378,20.363,20.0]
[1680465963187,8.01815076,20.378,20.361,119.0371]
[1680465963402,47.0,20.377,20.361,119.0371]
[1680465966400,42.64,20.37,20.355,110.9514]
[1680465966584,27.0,20.369,20.355,110.9514]
[1680465966896,10.0,20.368,20.355,110.9514]
[1680465967096,10.0,20.366,20.355,110.9514]
[1680465967279,17.0,20.365,20.355,110.9514]
[1680465967480,10.0,20.364,20.355,110.9514]
[1680465967681,17.0,20.363,20.355,110.9514]
[1680465968694,10.0,20.364,20.355,110.9514]
[1680465968993,17.0,20.363,20.355,110.9514]
[1680465969383,17.0,20.365,20.355,110.9514]
[1680465973981,10.0,20.366,20.355,110.9514]
[1680465974182,10.0,20.364,20.355,110.9514]
[1680465974395,17.0,20.363,20.355,110.9514]
[1680465974780,17.0,20.363,20.356,10.0]
[1680465979099,11.5,20.363,20.356,10.0]
[1680465979300,28.72,20.37,20.356,10.0]
[1680465979482,30.0,20.377,20.356,10.0]
[1680465979684,10.0,20.374,20.356,125.2072]
[1680465980884,0.68954243,20.373,20.356,125.2072]
[1680465981086,10.0,20.372,20.356,125.2072]
[1680465981387,17.0,20.371,20.356,125.2072]
[1680465985204,10.33955849,20.37,20.356,125.2072]
[1680465985396,17.0,20.369,20.356,125.2072]
[1680465987014,10.0,20.374,20.356,125.2072]
[1680465987508,10.0,20.374,20.356,132.58425917]
[1680465987892,0.34052706,20.373,20.356,132.58425917]
[1680465989113,17.34052706,20.373,20.356,132.58425917]
[1680465989620,0.34052706,20.373,20.356,132.58425917]
[1680465989907,0.34052706,20.373,20.358,10.0]
[1680465990093,0.34052706,20.373,20.359,20.0]
[1680465990300,0.34052706,20.373,20.36,10.0]
[1680465990502,0.34052706,20.373,20.361,20.0]
[1680465990706,0.34052706,20.373,20.362,10.0]
[1680465991108,0.34052706,20.373,20.364,10.0]
[1680465994113,19.637784,20.379,20.364,10.0]
[1680465994300,10.0,20.377,20.364,10.0]
[1680465994501,179.11784921,20.39,20.364,10.0]
[1680465994799,10.0,20.389,20.364,10.0]
[1680465995193,10.0,20.387,20.364,10.0]
[1680465995409,10.0,20.385,20.364,10.0]
[1680465995605,10.0,20.383,20.364,10.0]
[1680465996208,10.0,20.381,20.364,10.0]
[1680465996518,17.0,20.38,20.364,10.0]
[1680466000615,10.0,20.379,20.364,10.0]
[1680466000817,17.0,20.378,20.364,10.0]
[1680466001805,0.34246335,20.379,20.364,10.0]
[1680466002007,17.0,20.38,20.364,10.0]
[1680466002209,10.0,20.379,20.363,137.5009]
[1680466002410,10.0,20.377,20.364,10.0]
[1680466002610,17.0,20.376,20.364,10.0]
[1680466003106,10.0,20.377,20.364,10.0]
[1680466003314,17.0,20.376,20.364,10.0]
[1680466005226,10.0,20.377,20.364,10.0]
[1680466005524,17.0,20.376,20.364,10.0]
[1680466008822,10.0,20.377,20.364,10.0]
[1680466009021,17.0,20.376,20.364,10.0]
[1680466010609,10.0,20.375,20.363,137.5009]
[1680466010823,17.0,20.374,20.363,137.5009]
[1680466011129,10.0,20.373,20.363,137.5009]
[1680466011322,10.0,20.371,20.363,137.5009]
[1680466011526,17.0,20.37,20.363,137.5009]
[1680466012413,10.0,20.371,20.363,137.5009]
[1680466012613,17.0,20.37,20.363,137.5009]
[1680466014127,17.0,20.372,20.363,137.5009]
[1680466019347,14.91320124,20.378,20.363,137.5009]
[1680466020140,0.33988138,20.371,20.363,137.5009]
[1680466020952,14.91320124,20.378,20.363,137.5009]
[1680466021253,10.0,20.375,20.363,137.5009]
[1680466021437,10.0,20.373,20.363,137.5009]
[1680466021841,17.0,20.372,20.363,137.5009]
[1680466022948,0.33988138,20.371,20.363,137.5009]
[1680466023155,10.33988138,20.371,20.363,137.5009]
[1680466023455,17.0,20.37,20.363,137.5009]
[1680466023841,0.33988138,20.371,20.363,137.5009]
[1680466024038,17.0,20.372,20.363,137.5009]
[1680466025042,0.33988138,20.371,20.363,137.5009]
[1680466026046,17.0,20.372,20.363,137.5009]
[1680466026651,110.84776138,20.39,20.363,144.87795917]
[1680466027049,82.39776138,20.39,20.364,17.0]
[1680466027249,0.33955849,20.37,20.365,20.0]
[1680466027448,0.33955849,20.37,20.366,10.0]
[1680466027660,10.0,20.389,20.366,17.37705917]
[1680466027960,10.0,20.389,20.367,27.37705917]
[1680466028257,10.34568796,20.389,20.368,7.37705917]
[1680466028456,17.0,20.388,20.369,20.0]
[1680466028848,10.0,20.387,20.37,10.0]
[1680466029053,17.0,20.386,20.371,20.0]
[1680466029247,17.0,20.386,20.372,10.0]
[1680466029555,10.0,20.385,20.373,20.0]
[1680466029754,10.0,20.383,20.373,20.0]
[1680466029947,10.0,20.383,20.371,20.0]
[1680466030147,10.0,20.381,20.372,10.0]
[1680466030453,17.0,20.38,20.373,20.0]
[1680466030855,17.0,20.38,20.371,20.0]
[1680466031264,10.0,20.385,20.371,20.0]
[1680466031470,10.0,20.387,20.372,129.9189]
[1680466031765,10.0,20.387,20.374,10.0]
[1680466032155,0.3085075,20.379,20.374,10.0]
[1680466032859,0.3085075,20.379,20.373,10.0]
[1680466033060,10.0,20.387,20.375,10.0]
[1680466033248,10.0,20.385,20.375,10.0]
[1680466033450,17.0,20.384,20.375,10.0]
[1680466034066,0.30818486,20.378,20.374,20.0]
[1680466034549,0.30818486,20.378,20.374,10.0]
[1680466035160,10.0,20.387,20.374,10.0]
[1680466036160,0.3078622,20.377,20.374,10.0]
[1680466036561,0.3078622,20.377,20.373,20.0]
[1680466037055,10.0,20.387,20.374,10.0]
[1680466037257,10.0,20.385,20.374,10.0]
[1680466038159,10.0,20.385,20.373,20.0]
[1680466038160,0.3075395,20.376,20.373,20.0]
[1680466039170,17.0,20.386,20.374,10.0]
[1680466040158,0.30721677,20.375,20.374,10.0]
[1680466040369,0.30721677,20.375,20.374,30.0]
[1680466040569,0.30721677,20.375,20.374,20.0]
[1680466041170,17.0,20.386,20.374,20.0]
[1680466041979,20.0,20.385,20.372,119.9189]
[1680466042277,20.0,20.385,20.362,10.0]
[1680466042278,0.36263713,20.375,20.362,10.0]
[1680466043068,10.0,20.379,20.362,17.37705917]
[1680466043263,10.0,20.377,20.362,17.37705917]
[1680466043465,10.0,20.375,20.364,10.0]
[1680466043978,10.0,20.377,20.364,10.0]
[1680466044182,0.36223367,20.374,20.364,10.0]
[1680466045083,10.0,20.377,20.364,10.0]
[1680466045256,10.0,20.375,20.364,10.0]
[1680466045883,17.0,20.376,20.364,10.0]
[1680466046566,10.0,20.377,20.364,10.0]